bitfinex/quotes_ETHUSD_20220105
["timestamp","ask_amount","ask_price","bid_price","bid_amount"]
[1641391488956,3.2217877,3815.1,3814.9,0.00284211]
[1641391489153,4.2217877,3815.1,3814.9,0.00284211]
[1641391492596,3.5662955,3815.1,3814.9,0.00284211]
[1641391493600,2.5662955,3815.1,3814.9,0.00284211]
[1641391493801,2.5662955,3815.1,3815.0,1.74193608]
[1641391494203,2.5662955,3815.1,3815.0,1.74420977]
[1641391496960,2.5662955,3815.1,3815.0,1.30921232]
[1641391497360,2.5662955,3815.1,3815.0,0.00227369]
[1641391497560,3.5662955,3815.1,3815.0,0.00227369]
[1641391497760,3.5662955,3815.1,3814.9,0.00284211]
[1641391499403,3.5662955,3815.1,3815.0,1.30804527]
[1641391499801,3.5662955,3815.1,3815.0,1.31031896]
[1641391501603,3.5662955,3815.1,3815.0,0.00227369]
[1641391502008,3.5662955,3815.1,3814.9,0.00284211]
[1641391502673,8.5662955,3815.1,3814.9,0.00284211]
[1641391504561,7.9662955,3815.1,3814.9,0.00284211]
[1641391504758,5.65542,3815.1,3814.9,0.00284211]
[1641391504956,1.85602,3815.1,3814.9,0.00284211]
[1641391507003,2.15602,3815.1,3814.9,0.00284211]
[1641391507405,2.45602,3815.1,3814.9,0.00284211]
[1641391507805,4.11144,3815.1,3814.9,0.00284211]
[1641391508105,4.76679,3815.1,3814.9,0.00284211]
[1641391508506,5.4222474,3815.1,3814.9,0.00284211]
[1641391509206,4.76679,3815.1,3814.9,0.00284211]
[1641391510657,5.4222321,3815.1,3814.9,0.00284211]
[1641391513902,5.4222321,3815.1,3815.0,1.30670713]
[1641391514303,5.4222321,3815.1,3815.0,1.30898082]
[1641391514703,6.08322866,3815.1,3815.0,1.30898082]
[1641391514908,9.13322866,3815.1,3815.0,0.55959993]
[1641391515105,5.65,3815.0,3814.8,0.39122229]
[1641391515304,5.3376,3814.9,3814.8,0.39122229]
[1641391515501,5.3376,3814.9,3814.5,1.74122271]
[1641391515502,6.9376,3814.9,3814.5,1.74122271]
[1641391515704,8.9046,3814.9,3814.8,0.00113685]
[1641391516203,4.26263676,3814.8,3814.5,1.74122271]
[1641391516402,4.26263676,3814.8,3814.6,0.00113684]
[1641391516403,4.60564,3814.7,3814.6,0.00113684]
[1641391516604,5.98764,3814.7,3814.6,0.00113684]
[1641391516804,2.62262,3814.6,3814.1,0.00397896]
[1641391517004,0.682,3814.5,3814.1,0.00397896]
[1641391517246,1.982,3814.5,3814.1,0.00397896]
[1641391517451,0.56150375,3814.4,3814.1,0.00397896]
[1641391517646,0.94350375,3814.4,3814.1,0.00397896]
[1641391517846,1.59917495,3814.4,3814.1,0.00397896]
[1641391518052,0.65569,3814.3,3814.1,0.00397896]
[1641391518352,0.95569,3814.3,3814.1,0.00397896]
[1641391518552,0.3,3814.2,3814.1,0.00397896]
[1641391519151,4.35,3814.1,3814.0,2.69204493]
[1641391519352,4.732,3814.1,3814.0,2.69204493]
[1641391519554,7.34351,3814.1,3813.7,1.74122271]
[1641391519757,0.65575,3813.9,3813.7,1.74122271]
[1641391519961,1.03775,3813.9,3813.8,0.00170527]
[1641391520155,1.33775,3813.9,3813.8,0.00170527]
[1641391520356,2.41672122,3813.9,3813.8,0.00170527]
[1641391520556,2.41672122,3813.9,3813.4,0.00397897]
[1641391520758,1.31148,3813.8,3813.4,0.00397897]
[1641391521008,1.61148,3813.7,3813.4,0.00397897]
[1641391521603,3.26722,3813.7,3813.4,0.00397897]
[1641391522003,0.66099656,3813.6,3813.4,0.00397897]
[1641391522206,4.38782,3813.5,3813.4,0.00397897]
[1641391522403,1.33782,3813.5,3813.4,0.00397897]
[1641391522607,2.33782,3813.5,3813.3,1.74122271]
[1641391522804,2.33782,3813.5,3813.1,1.74122271]
[1641391522805,1.0,3813.4,3813.1,1.74122271]
[1641391523005,4.30546,3813.4,3813.1,1.74122271]
[1641391523204,2.14902003,3813.3,3813.2,0.00113684]
[1641391523407,3.48689003,3813.3,3813.1,1.74122271]
[1641391523805,4.14276003,3813.3,3813.1,1.74122271]
[1641391524004,4.14276003,3813.3,3812.9,2.13357967]
[1641391524005,4.80375659,3813.3,3812.9,2.13357967]
[1641391524205,5.45961659,3813.3,3812.9,2.13357967]
[1641391524405,0.65586,3813.1,3813.0,0.00113685]
[1641391524658,1.95586,3813.1,3813.0,0.00113685]
[1641391525556,2.61685656,3813.1,3813.0,1.31600291]
[1641391525756,3.27272656,3813.1,3813.0,1.31600291]
[1641391525956,3.90121777,3813.1,3813.0,1.31600291]
[1641391526156,3.90121777,3813.1,3813.0,0.00113685]
[1641391526558,6.56795935,3813.1,3813.0,0.00113685]
[1641391526756,6.54022906,3813.1,3813.0,0.00113685]
[1641391527157,3.90121777,3813.1,3813.0,0.00113685]
[1641391527860,5.90121777,3813.1,3813.0,0.00113685]
[1641391528061,5.90121777,3813.1,3813.0,1.31625964]
[1641391528710,8.65494258,3813.1,3813.0,1.31625964]
[1641391529112,5.90121777,3813.1,3813.0,1.31625964]
[1641391529612,5.90121777,3813.1,3813.0,0.00113685]
[1641391530913,9.88469889,3813.1,3812.9,0.00170527]
[1641391531114,2.66903681,3813.0,3812.9,0.00170527]
[1641391531313,2.96903681,3813.0,3812.9,0.00170527]
[1641391531514,3.96903681,3813.0,3812.9,0.00170527]
[1641391532448,1.96099656,3813.0,3812.9,0.00170527]
[1641391532652,4.60275258,3813.0,3812.9,0.00170527]
[1641391532854,0.655886,3812.9,3812.8,0.0022737]
[1641391533055,4.29444631,3812.9,3812.8,0.0022737]
[1641391533253,1.655886,3812.9,3812.8,0.0022737]
[1641391533553,0.955886,3812.9,3812.7,0.00284212]
[1641391533759,1.31687656,3813.0,3812.7,0.00284212]
[1641391533954,5.14038121,3813.1,3812.8,0.01237041]
[1641391533955,4.48451121,3813.1,3812.8,0.01237041]
[1641391534351,4.48451121,3813.1,3812.9,0.00170527]
[1641391535557,4.78451121,3813.1,3812.9,0.00170527]
[1641391536605,5.08451121,3813.1,3812.9,0.00170527]
[1641391539963,4.98451121,3813.1,3812.9,0.00170527]
[1641391544301,5.64024311,3813.1,3812.9,0.00170527]
[1641391544501,4.98451121,3813.1,3812.9,0.00170527]
[1641391551009,2.51742121,3813.1,3812.9,0.00170527]
[1641391551211,0.6068536,3813.0,3812.9,0.00170527]
[1641391556360,0.9068536,3813.0,3812.9,0.00170527]
[1641391556760,0.6068536,3813.0,3812.9,1.30454464]
[1641391562555,2.4628736,3813.0,3812.9,1.30454464]
[1641391562955,2.4628736,3813.0,3812.9,4.80454464]
[1641391563355,2.4628736,3813.0,3812.9,1.30454464]
[1641391563958,2.7628736,3813.0,3812.9,1.30454464]
[1641391564161,2.7628736,3813.0,3812.9,0.00170527]
[1641391564357,2.7628736,3813.0,3812.8,6.50268367]
[1641391564961,2.7628736,3813.0,3812.9,1.30283937]
[1641391565365,1.85602,3813.0,3812.9,1.30283937]
[1641391565563,0.00301454,3813.3,3813.0,6.85]
[1641391565761,0.00301454,3813.3,3813.1,2.83232238]
[1641391566011,0.00301454,3813.3,3813.2,7.244808]
[1641391566209,1.33637114,3814.7,3813.4,2.6216]
[1641391566416,0.67774902,3814.2,3813.8,1.17895274]
[1641391566820,0.67774902,3814.2,3813.8,1.98771044]
[1641391567616,0.67774902,3814.2,3813.9,0.65546]
[1641391568218,0.67774902,3814.2,3813.9,1.94974798]
[1641391568417,1.27774902,3814.2,3813.9,1.94974798]
[1641391568818,1.27774902,3814.2,3813.9,0.65546]
[1641391570055,1.27774902,3814.2,3813.9,1.94974798]
[1641391571764,1.57774902,3814.2,3813.9,1.94974798]
[1641391572558,1.57774902,3814.2,3813.9,0.65546]
[1641391572758,2.23336902,3814.2,3813.9,0.65546]
[1641391572958,2.88898902,3814.2,3813.9,0.65546]
[1641391576115,1.57774902,3814.2,3813.9,0.65546]
[1641391576314,1.27774902,3814.2,3813.9,0.65546]
[1641391576915,1.27774902,3814.2,3813.9,3.30159999]
[1641391577553,1.57774902,3814.2,3813.9,0.65546]
[1641391577958,1.57774902,3814.2,3813.9,3.31670186]
[1641391578358,1.57774902,3814.2,3814.0,1.29428798]
[1641391579157,1.57774902,3814.2,3814.1,1.29428798]
[1641391579559,1.58343325,3814.2,3814.1,1.29428798]
[1641391579965,1.58343325,3814.2,3813.9,1.94974798]
[1641391580364,0.00511581,3814.1,3813.9,1.94974798]
[1641391580765,0.00454739,3814.0,3813.9,1.94974798]
[1641391581006,0.00454739,3814.0,3813.9,1.29428798]
[1641391581206,0.00454739,3814.0,3813.8,2.99798944]
[1641391581608,0.00397896,3813.9,3813.8,2.99798944]
[1641391583207,0.00397896,3813.9,3813.8,1.70370146]
[1641391586356,0.00397896,3813.9,3813.8,5.20370146]
[1641391588600,0.00397896,3813.9,3813.8,7.89915332]
[1641391589000,0.00397896,3813.9,3813.8,5.20370146]
[1641391590907,0.00397896,3813.9,3813.8,6.49920534]
[1641391592963,0.30397896,3813.9,3813.8,6.49920534]
[1641391593166,0.00397896,3813.9,3813.8,6.49920534]
[1641391593568,0.00397896,3813.9,3813.8,5.20370146]
[1641391593969,0.00397896,3813.9,3813.8,2.99920534]
[1641391596002,0.00397896,3813.9,3813.8,6.49920534]
[1641391597007,0.00397896,3813.9,3813.8,5.20370146]
[1641391597505,0.00397896,3813.9,3813.8,6.49920534]
[1641391599756,0.00397896,3813.9,3813.8,5.20370146]
[1641391600359,0.00397896,3813.9,3813.8,6.49920534]
[1641391601761,0.00397896,3813.9,3813.8,2.99920534]
[1641391601961,0.00397896,3813.9,3813.8,3.42941876]
[1641391602962,0.00397896,3813.9,3813.8,1.70370146]
[1641391609960,0.00397896,3813.9,3813.8,3.00507671]
[1641391611210,0.00397896,3813.9,3813.8,1.70370146]
[1641391611411,0.79900092,3813.9,3813.8,1.70370146]
[1641391612009,0.79502196,3813.9,3813.8,1.70370146]
[1641391612607,5.79502196,3813.9,3813.8,1.70370146]
[1641391613009,6.79502196,3813.9,3813.8,1.70370146]
[1641391622022,5.79502196,3813.9,3813.8,1.70370146]
[1641391622256,5.0,3813.9,3813.8,3.43963216]
[1641391622859,5.0,3813.9,3813.8,6.05664559]
[1641391623061,5.0,3813.9,3813.8,3.43963216]
[1641391624064,5.3,3813.9,3813.8,3.43963216]
[1641391628515,5.3,3813.9,3813.8,1.70370146]
[1641391629319,5.3,3813.9,3813.8,1.55370146]
[1641391632254,6.85,3813.7,3813.4,1.50819107]
[1641391632460,2.81001792,3813.5,3813.1,6.02130254]
[1641391632754,1.682,3813.4,3813.1,6.02130254]
[1641391632956,0.382,3813.3,3813.1,1.31152]
[1641391633155,0.99119265,3813.3,3813.1,1.31152]
[1641391633607,2.30273525,3813.3,3813.1,1.31152]
[1641391633806,0.60919265,3813.3,3813.1,1.31152]
[1641391635112,0.00170527,3813.5,3813.1,1.61152]
[1641391635311,0.00170527,3813.5,3813.3,0.65566]
[1641391635512,0.00113684,3813.4,3813.3,0.65566]
[1641391635711,5.0,3813.9,3813.5,1.29843865]
[1641391635913,0.00341054,3813.8,3813.5,2.60963865]
[1641391636111,0.00341054,3813.8,3813.5,2.90963865]
[1641391636311,0.61649084,3813.6,3813.5,2.90963865]
[1641391636513,0.00170528,3813.7,3813.5,2.90963865]
[1641391636715,0.00113685,3813.6,3813.5,2.90963865]
[1641391637159,0.05703685,3813.9,3813.5,2.90963865]
[1641391637560,3.2621,3814.2,3814.1,1.01059641]
[1641391637863,0.64688486,3814.3,3814.1,1.01059641]
[1641391638159,0.94688486,3814.3,3814.1,1.01059641]
[1641391638761,0.94688486,3814.3,3814.2,1.29873685]
[1641391639060,0.94972698,3814.3,3814.2,1.29873685]
[1641391639262,0.00284212,3814.3,3814.2,1.59873685]
[1641391639466,0.60284212,3814.3,3814.2,4.75180436]
[1641391639964,1.33637114,3814.9,3814.8,1.27773931]
[1641391640364,0.52213485,3815.2,3814.8,1.27773931]
[1641391640765,0.00454738,3815.1,3814.8,1.27773931]
[1641391641009,0.00454738,3815.1,3814.8,1.93310931]
[1641391641307,0.00397896,3815.0,3814.8,5.82664529]
[1641391641706,0.00341054,3814.9,3814.8,3.53005542]
[1641391641907,1.33637114,3815.6,3814.8,6.48346593]
[1641391642110,3.3154,3815.8,3814.9,1.29694611]
[1641391642111,1.33637114,3815.7,3814.9,1.29694611]
[1641391642308,0.00341054,3815.5,3815.3,0.65527]
[1641391642708,0.00284211,3815.4,3815.3,0.65527]
[1641391643209,0.00284211,3815.4,3815.3,1.23770218]
[1641391643408,0.00284211,3815.4,3815.3,0.65527]
[1641391649115,0.66080882,3815.4,3815.3,0.65527]
[1641391649614,0.96080882,3815.4,3815.3,0.65527]
[1641391649916,0.96080882,3815.4,3815.2,1.31053]
[1641391650213,2.54066417,3815.3,3815.2,1.31053]
[1641391650415,2.92266417,3815.3,3815.2,1.31053]
[1641391650713,3.92266417,3815.3,3815.2,1.31053]
[1641391651115,5.11979072,3815.3,3815.2,1.31053]
[1641391652368,2.58140024,3815.3,3815.2,1.31053]
[1641391653968,3.54777282,3815.3,3815.2,1.31053]
[1641391656203,2.35064627,3815.3,3815.2,1.31053]
[1641391659663,3.70008283,3815.3,3815.2,1.31053]
[1641391662365,8.70008283,3815.3,3815.2,1.31053]
[1641391662968,11.33893038,3815.3,3815.2,1.31053]
[1641391663723,8.70008283,3815.3,3815.2,1.31053]
[1641391664122,11.24864037,3815.3,3815.2,1.31053]
[1641391666729,11.19409437,3815.3,3815.2,1.31053]
[1641391668762,11.42099627,3815.3,3815.0,0.65553]
[1641391668967,0.655585,3815.0,3814.6,2.60804481]
[1641391669166,1.03758,3814.9,3814.6,2.60804481]
[1641391669466,1.33758,3814.9,3814.6,1.31103]
[1641391670065,0.63144236,3814.8,3814.6,1.31103]
[1641391670267,1.80298274,3814.7,3814.6,1.31103]
[1641391670465,2.10298274,3814.7,3814.6,1.31103]
[1641391670671,3.10298274,3814.7,3814.6,1.31500896]
[1641391671515,4.06935532,3814.7,3814.6,1.31500896]
[1641391671915,6.61538719,3814.7,3814.6,1.31500896]
[1641391672113,6.62059723,3814.7,3814.6,0.00397896]
[1641391672314,7.27621723,3814.7,3814.6,0.00397896]
[1641391672513,7.27621723,3814.7,3814.5,0.00454739]
[1641391673114,2.52510724,3814.6,3814.5,0.00454739]
[1641391673317,0.382,3814.6,3814.5,0.00454739]
[1641391673518,1.382,3814.6,3814.5,0.00454739]
[1641391673919,0.382,3814.6,3814.5,0.00454739]
[1641391674119,1.34837258,3814.6,3814.5,0.00454739]
[1641391675174,1.64837258,3814.6,3814.5,0.00454739]
[1641391682662,6.64837258,3814.6,3814.5,0.00454739]
[1641391686306,5.682,3814.6,3814.5,0.00454739]
[1641391688415,9.11304074,3814.6,3814.5,0.00454739]
[1641391688613,10.11304074,3814.6,3814.5,0.00454739]
[1641391688813,7.3375813,3814.6,3814.5,0.00454739]
[1641391689017,0.65567,3814.5,3814.2,0.00625266]
[1641391689215,1.03767,3814.4,3814.2,0.00625266]
[1641391689415,1.31654,3814.4,3814.0,3.5001595]
[1641391689674,0.682,3814.4,3814.1,0.00682108]
[1641391689862,1.67073292,3814.4,3814.1,0.00682108]
[1641391690063,2.32636292,3814.4,3814.0,0.0073895]
[1641391690264,0.65562,3814.3,3814.0,0.0073895]
[1641391690464,0.382,3814.2,3814.0,0.0073895]
[1641391690662,0.382,3814.2,3813.9,0.00795793]
[1641391691062,1.55008484,3814.1,3813.9,0.00795793]
[1641391691263,0.382,3814.0,3813.9,0.00795793]
[1641391691669,0.682,3814.0,3813.9,0.00795793]
[1641391691864,3.2091019,3814.0,3813.9,0.00795793]
[1641391692467,0.682,3814.0,3813.9,0.00795793]
[1641391692666,25.70745944,3814.0,3813.9,0.00795793]
[1641391692865,23.932,3814.0,3813.9,0.00795793]
[1641391693066,23.932,3814.0,3813.8,0.00852635]
[1641391693268,8.1615567,3813.9,3813.8,0.00852635]
[1641391693511,8.5435567,3813.9,3813.6,0.0096632]
[1641391693717,8.5998767,3813.9,3813.6,0.0096632]
[1641391694014,0.65579,3813.8,3813.6,0.0096632]
[1641391694216,5.77462,3813.7,3813.6,0.0096632]
[1641391694513,12.16228,3813.7,3813.5,0.01023162]
[1641391694716,7.85,3813.6,3813.5,0.01023162]
[1641391694916,23.632,3813.6,3813.5,0.01023162]
[1641391695516,23.632,3813.6,3813.4,0.01080005]
[1641391695715,8.52571139,3813.5,3813.4,0.01080005]
[1641391695917,24.60771139,3813.5,3813.4,0.01080005]
[1641391696121,30.38371139,3813.5,3813.4,0.01080005]
[1641391696319,30.38371139,3813.5,3813.3,0.01136847]
[1641391696618,23.25,3813.4,3813.3,0.01136847]
[1641391696822,23.632,3813.4,3813.3,0.01136847]
[1641391697273,8.232,3813.4,3813.3,0.01136847]
[1641391697471,1.382,3813.4,3813.3,0.01136847]
[1641391697675,0.382,3813.4,3813.3,0.01136847]
[1641391699679,0.31215443,3813.4,3813.3,0.01136847]
[1641391701315,0.31215443,3813.4,3813.2,0.01193689]
[1641391702520,0.65577,3813.3,3813.2,0.01193689]
[1641391702719,1.03777,3813.3,3813.2,0.01193689]
[1641391705577,3.68777,3813.3,3813.2,0.01193689]
[1641391705981,7.21484649,3813.3,3813.2,0.01193689]
[1641391706381,7.21484649,3813.3,3812.9,1.31151]
[1641391706382,7.21484649,3813.3,3813.0,0.01307374]
[1641391706579,1.0,3813.2,3813.0,0.01307374]
[1641391706781,1.3,3813.2,3813.0,0.01307374]
[1641391706982,4.182,3813.1,3813.0,0.01307374]
[1641391707385,7.84453969,3813.1,3813.0,0.01307374]
[1641391708183,5.31866282,3813.1,3813.0,0.01307374]
[1641391708809,5.31866282,3813.1,3812.8,0.01421059]
[1641391709009,1.31174,3813.0,3812.8,0.01421059]
[1641391709209,3.282,3812.9,3812.8,0.01421059]
[1641391711117,0.382,3812.9,3812.8,0.01421059]
[1641391712362,3.932,3812.9,3812.8,0.01421059]
[1641391712565,0.382,3812.9,3812.8,0.01421059]
[1641391713363,3.832,3812.9,3812.8,0.01421059]
[1641391713764,6.47102151,3812.9,3812.8,0.01421059]
[1641391713968,6.60246918,3812.9,3812.8,0.01421059]
[1641391714266,0.65592,3812.8,3812.6,0.01534743]
[1641391714464,2.95980117,3812.7,3812.6,0.01534743]
[1641391715073,3.95980117,3812.7,3812.2,0.01762113]
[1641391715270,1.15120387,3812.4,3812.2,0.01762113]
[1641391715470,1.48320387,3812.4,3812.2,0.01762113]
[1641391715910,1.48320387,3812.4,3812.0,0.01875797]
[1641391716317,0.6645947,3812.3,3812.0,0.01875797]
[1641391716516,3.21238557,3812.3,3812.0,0.01875797]
[1641391716718,0.6645947,3812.3,3812.0,0.01875797]
[1641391716918,0.65597,3812.2,3812.0,0.01875797]
[1641391717723,1.03797,3812.2,3812.0,0.01875797]
[1641391718023,1.03797,3812.2,3812.0,0.67468797]
[1641391718320,1.03797,3812.2,3812.1,0.01818955]
[1641391720376,1.03797,3812.2,3811.9,0.91567838]
[1641391721575,1.03797,3812.2,3812.0,0.65593]
[1641391721976,0.382,3812.2,3812.0,0.65593]
[1641391727174,2.56237288,3812.1,3812.0,0.65593]
[1641391727473,2.56237288,3812.1,3811.6,1.31193]
[1641391727474,3.1290072,3812.1,3811.6,1.31193]
[1641391727672,0.382,3812.1,3811.6,1.31193]
[1641391727971,1.0,3812.0,3811.7,0.00227369]
[1641391728176,0.3,3812.2,3811.7,0.00227369]
[1641391728177,0.382,3811.9,3811.7,0.00227369]
[1641391728375,1.51798742,3811.8,3811.3,0.00454739]
[1641391728577,0.65609,3811.5,3811.3,0.00454739]
[1641391728776,0.382,3811.4,3811.3,0.00454739]
[1641391729876,0.682,3811.4,3811.3,0.00454739]
[1641391730077,1.33809,3811.4,3811.3,0.00454739]
[1641391730780,3.86620193,3811.4,3811.3,0.00454739]
[1641391731222,0.65615,3811.3,3810.9,0.65615]
[1641391731423,0.65614,3811.1,3811.0,0.00625266]
[1641391731721,1.03814,3811.1,3811.0,0.00625266]
[1641391731919,1.63899085,3811.1,3811.0,0.00625266]
[1641391733927,1.63899085,3811.1,3811.0,0.00763255]
[1641391737174,0.382,3811.1,3811.0,0.00763255]
[1641391741926,0.00294783,3811.4,3811.0,0.00763255]
[1641391742192,0.00294783,3811.4,3811.1,1.3119253]
[1641391742390,0.00294783,3811.4,3811.2,2.68897724]
[1641391742590,0.69398165,3811.1,3811.0,1.31332989]
[1641391742790,0.00294783,3811.4,3811.0,1.31332989]
[1641391743090,0.00294783,3811.4,3811.1,0.65598]
[1641391745600,0.00294783,3811.4,3811.2,1.754423]
[1641391746423,0.00294783,3811.4,3811.2,3.06373355]
[1641391746622,0.00294783,3811.4,3811.2,1.30931055]
[1641391747222,0.382,3811.6,3811.2,1.30931055]
[1641391747423,1.03804,3811.6,3811.2,1.30931055]
[1641391747623,0.00170527,3811.5,3811.3,0.65603]
[1641391748123,0.00113685,3811.4,3811.3,0.65603]
[1641391748325,0.00113685,3811.4,3811.2,1.31205]
[1641391751476,0.00113685,3811.4,3811.2,2.62136055]
[1641391752376,0.00113685,3811.4,3811.3,1.17152978]
[1641391753175,0.00113685,3811.4,3811.2,2.62136055]
[1641391754017,0.00113685,3811.4,3811.3,1.30931055]
[1641391755024,0.00113685,3811.4,3811.2,2.62136055]
[1641391755224,0.00113685,3811.4,3811.3,0.00137978]
[1641391759375,1.21930828,3811.4,3811.3,0.00137978]
[1641391759778,3.97903872,3811.4,3811.3,0.00137978]
[1641391760080,3.94933872,3811.4,3811.3,0.00137978]
[1641391760921,4.33133872,3811.4,3811.3,0.00137978]
[1641391761721,5.49299024,3811.4,3811.3,0.00137978]
[1641391762927,3.0332598,3811.4,3811.3,0.00137978]
[1641391763528,2.87160828,3811.4,3811.3,0.00137978]
[1641391764328,5.33503055,3811.4,3811.3,0.00137978]
[1641391765570,6.49665473,3811.4,3811.3,0.00137978]
[1641391766571,2.81506103,3811.4,3811.3,0.00137978]
[1641391770826,5.25720185,3811.4,3811.3,0.00137978]
[1641391771026,2.81506103,3811.4,3811.3,0.00137978]
[1641391773773,5.54347723,3811.4,3811.3,0.00137978]
[1641391773973,2.81506103,3811.4,3811.3,0.00137978]
[1641391776016,10.23661808,3811.4,3811.3,0.00137978]
[1641391778418,10.23548123,3811.4,3811.3,0.00137978]
[1641391781074,7.81392418,3811.4,3811.3,0.00137978]
[1641391781275,10.54234038,3811.4,3811.3,0.00137978]
[1641391781476,7.81392418,3811.4,3811.3,0.00137978]
[1641391782279,6.6523,3811.4,3811.3,0.00137978]
[1641391783079,7.80324532,3811.4,3811.3,0.00137978]
[1641391783278,10.30298027,3811.4,3811.3,0.00137978]
[1641391783924,7.80324532,3811.4,3811.3,0.00137978]
[1641391784828,6.6523,3811.4,3811.3,0.00137978]
[1641391785927,6.6523,3811.4,3811.2,1.21342978]
[1641391786126,1.0,3811.3,3811.2,1.21342978]
[1641391786328,1.382,3811.3,3811.2,1.21342978]
[1641391787971,5.0,3811.4,3811.2,3.76909571]
[1641391788168,5.0,3811.4,3811.3,5.5]
[1641391788768,0.00294783,3812.0,3811.3,1.754423]
[1641391788966,0.00294783,3812.0,3811.6,0.6559]
[1641391789171,0.00397896,3811.9,3811.6,0.6559]
[1641391789367,0.00397896,3811.9,3811.7,0.6559]
[1641391789567,0.00341054,3811.8,3811.7,0.9559]
[1641391790172,0.00341054,3811.8,3811.7,0.6559]
[1641391794324,2.52509842,3811.8,3811.7,0.6559]
[1641391794525,1.00341054,3811.8,3811.7,0.6559]
[1641391795379,3.48464108,3811.8,3811.7,0.6559]
[1641391796777,3.48464108,3811.8,3811.2,1.3122]
[1641391796778,3.86664108,3811.8,3811.2,1.3122]
[1641391797079,0.65614,3811.6,3811.4,0.65613]
[1641391797276,2.55866728,3811.5,3811.4,0.65613]
[1641391797476,2.56037255,3811.5,3811.4,0.65613]
[1641391797882,3.56037255,3811.5,3811.4,0.65613]
[1641391799412,4.24530193,3811.5,3811.4,0.65613]
[1641391800420,1.68663465,3811.5,3811.4,0.65613]
[1641391800617,0.68663465,3811.5,3811.4,0.65613]
[1641391800818,1.68663465,3811.5,3811.4,0.65613]
[1641391801418,0.68663465,3811.5,3811.4,0.65613]
[1641391801619,1.68663465,3811.5,3811.4,0.65613]
[1641391802570,0.68663465,3811.5,3811.4,0.65613]
[1641391802768,1.68663465,3811.5,3811.4,0.65613]
[1641391803168,0.68663465,3811.5,3811.4,0.65613]
[1641391803369,1.68663465,3811.5,3811.4,0.65613]
[1641391803968,0.68663465,3811.5,3811.4,0.65613]
[1641391804175,1.68663465,3811.5,3811.4,0.65613]
[1641391804373,0.68663465,3811.5,3811.4,0.65613]
[1641391804673,1.68663465,3811.5,3811.4,0.65613]
[1641391804875,0.68663465,3811.5,3811.4,0.65613]
[1641391805076,1.68663465,3811.5,3811.4,0.65613]
[1641391805373,0.68663465,3811.5,3811.4,0.65613]
[1641391805577,1.68663465,3811.5,3811.4,0.65613]
[1641391805774,0.68663465,3811.5,3811.4,0.65613]
[1641391806027,1.68663465,3811.5,3811.4,0.65613]
[1641391806227,0.68663465,3811.5,3811.4,0.65613]
[1641391806432,1.68663465,3811.5,3811.4,0.65613]
[1641391807631,1.68663465,3811.5,3811.4,0.64613]
[1641391808036,0.68663465,3811.5,3811.4,0.64613]
[1641391808236,1.68663465,3811.5,3811.4,0.64613]
[1641391808433,2.75523133,3811.5,3811.4,0.64613]
[1641391809433,1.68663465,3811.5,3811.4,0.64613]
[1641391809674,0.68663465,3811.5,3811.4,0.64613]
[1641391809878,1.68663465,3811.5,3811.4,0.64613]
[1641391810079,0.68663465,3811.5,3811.4,0.64613]
[1641391810279,1.68663465,3811.5,3811.4,0.64613]
[1641391810579,0.68663465,3811.5,3811.4,0.64613]
[1641391810784,1.68663465,3811.5,3811.4,0.64613]
[1641391811182,0.68663465,3811.5,3811.4,0.64613]
[1641391811380,1.68663465,3811.5,3811.4,0.64613]
[1641391811582,0.00170527,3811.5,3811.4,0.64613]
[1641391813732,0.00170527,3811.5,3811.4,5.06596434]
[1641391814330,1.33637114,3812.4,3811.8,0.65582]
[1641391814534,1.24549066,3812.8,3812.0,0.65583]
[1641391814732,1.40911927,3812.9,3812.1,1.31162]
[1641391814733,0.00454739,3812.3,3812.1,1.31162]
[1641391814932,0.56581324,3812.3,3812.1,1.31162]
[1641391815131,0.00397896,3812.2,3812.1,1.31162]
[1641391815833,0.00397896,3812.2,3812.1,2.62649757]
[1641391818076,0.07569596,3812.9,3812.2,4.8]
[1641391818374,0.00341054,3812.8,3812.5,0.65572]
[1641391818579,0.00341054,3812.8,3812.6,2.59927505]
[1641391818777,0.07569596,3812.9,3812.6,2.59927505]
[1641391818977,0.07569596,3812.9,3812.6,2.89927505]
[1641391819177,0.07274813,3812.9,3812.6,4.13671459]
[1641391819377,0.07274813,3812.9,3812.7,1.96699]
[1641391819577,0.07274813,3812.9,3812.8,2.59338268]
[1641391819778,0.07274813,3812.9,3812.8,2.89338268]
[1641391819978,0.07388498,3812.9,3812.8,2.89338268]
[1641391820178,0.07388498,3812.9,3812.8,0.3]
[1641391820379,0.07388498,3812.9,3812.7,2.26699]
[1641391822726,0.07388498,3812.9,3812.8,2.60144365]
[1641391824675,0.07388498,3812.9,3812.7,1.96699]
[1641391825271,0.07388498,3812.9,3812.7,2.26699]
[1641391825472,0.07388498,3812.9,3812.8,2.610599]
[1641391826676,0.00294783,3813.8,3812.9,6.85]
[1641391826873,0.00294783,3813.8,3813.3,0.65552]
[1641391827074,1.33637114,3814.7,3813.5,0.65551]
[1641391827475,0.00568424,3814.6,3813.7,0.65546]
[1641391827775,0.53499968,3814.3,3813.7,2.86189355]
[1641391827976,0.53499968,3814.3,3813.9,1.31093]
[1641391828176,0.00341054,3814.2,3814.0,0.65543]
[1641391828620,0.00284212,3814.1,3814.0,0.95543]
[1641391828829,0.00284212,3814.1,3814.0,0.3]
[1641391829022,0.00284212,3814.1,3813.9,2.62178]
[1641391829227,0.00284212,3814.1,3813.9,1.31093]
[1641391829424,1.28760641,3814.0,3813.9,1.31093]
[1641391829825,1.58760641,3814.0,3813.9,1.31093]
[1641391832786,1.58760641,3814.0,3813.5,1.31139]
[1641391832787,4.13463223,3814.0,3813.5,1.31139]
[1641391833184,0.00170527,3813.9,3813.5,1.31139]
[1641391833389,0.382,3813.8,3813.5,1.31139]
[1641391833589,0.68313685,3813.8,3813.5,1.31139]
[1641391833791,0.65577,3813.7,3813.5,1.31139]
[1641391833993,1.03777,3813.7,3813.5,1.31139]
[1641391834592,1.03777,3813.7,3813.4,0.00113685]
[1641391834992,0.6557809,3813.6,3813.4,0.65579]
[1641391835394,0.3,3813.5,3813.4,0.65579]
[1641391836446,1.37072855,3813.5,3813.4,0.65579]
[1641391841477,1.37072855,3813.5,3813.3,1.31147]
[1641391841878,1.37072855,3813.5,3813.3,1.30147]
[1641391842879,1.07072855,3813.4,3813.3,1.30147]
[1641391843279,1.07072855,3813.4,3813.3,1.30317527]
[1641391853628,1.07072855,3813.4,3813.3,0.00170527]
[1641391854028,1.07072855,3813.4,3813.1,0.00284212]
[1641391854229,1.3116151,3813.3,3813.1,0.00284212]
[1641391854687,1.6116151,3813.3,3813.1,0.00284212]